bitfinex-derivatives/quotes_SOLF0:USTF0_20250904
["timestamp","ask_amount","ask_price","bid_price","bid_amount"]
[1756949803503,7.62,210.5,210.45,7.67]
[1756949803708,0.03560963,210.51,210.45,7.67]
[1756949803902,7.65560963,210.51,210.45,7.67]
[1756949808810,7.65560963,210.51,210.41,7.63]
[1756949813303,10.0932909,210.51,210.41,7.63]
[1756949813709,7.65560963,210.51,210.41,7.63]
[1756949813909,7.62,210.49,210.41,7.63]
[1756949822914,7.62,210.47,210.41,7.63]
[1756949823215,7.62,210.47,210.37,7.63]
[1756949823413,0.03127659,210.46,210.37,7.63]
[1756949825911,7.62,210.45,210.37,7.63]
[1756949826818,0.03127659,210.46,210.39,7.63]
[1756949827015,0.03127659,210.46,210.44,2.43768127]
[1756949827215,0.03127659,210.46,210.45,7.63]
[1756949830717,7.62,210.56,210.45,8.11]
[1756949830918,7.62,210.56,210.48,7.63]
[1756949831627,73.03959606,210.59,210.51,7.63]
[1756949832422,7.25,210.58,210.51,7.63]
[1756949834529,7.25,210.58,210.52,0.03101712]
[1756949835424,7.25,210.56,210.52,0.03101712]
[1756949835932,7.25,210.58,210.52,0.03101712]
[1756949837626,7.25,210.56,210.52,0.03101712]
[1756949837819,7.25,210.58,210.52,0.03101712]
[1756949838929,117.66,210.57,210.53,7.88]
[1756949839125,124.91,210.58,210.52,0.03101712]
[1756949839326,124.91,210.58,210.52,7.91101712]
[1756949839727,124.91,210.58,210.52,0.03101712]
[1756949840829,127.34768127,210.58,210.52,0.03101712]
[1756949844236,7.25,210.54,210.52,0.03101712]
[1756949844430,124.91,210.53,210.52,0.03101712]
[1756949845530,125.39,210.53,210.41,7.88]
[1756949845838,7.25,210.5,210.41,7.88]
[1756949846739,0.03561632,210.48,210.41,7.88]
[1756949846938,124.91,210.47,210.41,7.88]
[1756949847140,124.91,210.47,210.38,7.88]
[1756949855243,124.91,210.47,210.35,3.95939504]
[1756949855244,2.43768127,210.46,210.35,3.95939504]
[1756949855443,7.25,210.45,210.35,3.95939504]
[1756949855845,0.03420162,210.42,210.35,3.95939504]
[1756949856143,0.03420162,210.42,210.34,10.31768127]
[1756949856144,0.03420162,210.42,210.34,14.27707631]
[1756949857951,7.25,210.41,210.34,3.95939504]
[1756949858144,19.73768127,210.4,210.3,8.70720261]
[1756949858449,7.25,210.39,210.3,7.88]
[1756949858646,0.03322219,210.37,210.3,7.88]
[1756949858847,7.28322219,210.37,210.3,7.88]
[1756949860053,7.28322219,210.37,210.27,7.88]
[1756949860750,0.03322219,210.37,210.3,7.88]
[1756949860951,0.03322219,210.37,210.33,7.88]
[1756949861154,34.81,210.41,210.33,7.88]
[1756949861453,0.03463949,210.37,210.35,7.88]
[1756949862651,9.46639715,210.37,210.25,7.93]
[1756949862851,9.46639715,210.37,210.3,7.93]
[1756949863151,0.03245594,210.36,210.3,7.93]
[1756949863853,1.5942136,210.36,210.3,7.93]
[1756949864158,0.03245594,210.36,210.3,7.93]
[1756949864860,0.03245594,210.36,210.29,1.56175766]
[1756949865049,1.56175766,210.35,210.27,9.49175766]
[1756949865464,0.03552536,210.33,210.27,9.49175766]
[1756949865955,0.03552536,210.33,210.3,7.93]
[1756949866253,9.43175766,210.45,210.32,9.49175766]
[1756949866452,9.43175766,210.45,210.38,1.56175766]
[1756949867257,9.43175766,210.45,210.37,7.93]
[1756949867460,9.43175766,210.45,210.39,0.03655071]
[1756949867956,7.87,210.43,210.39,0.03655071]
[1756949869161,1.56175766,210.42,210.39,0.03655071]
[1756949869351,9.43175766,210.4,210.39,0.03655071]
[1756949870159,7.87,210.4,210.39,0.03655071]
[1756949871054,125.55,210.44,210.39,7.96655071]
[1756949871251,117.68,210.44,210.39,7.96655071]
[1756949871460,7.87,210.43,210.39,7.96655071]
[1756949872061,119.24175766,210.44,210.39,0.03655071]
[1756949872461,7.87,210.43,210.39,0.03655071]
[1756949872662,119.24175766,210.44,210.39,0.03655071]
[1756949872863,1.56175766,210.42,210.39,0.03655071]
[1756949873062,7.87,210.41,210.39,0.03655071]
[1756949873264,1.56175766,210.42,210.39,0.03655071]
[1756949873666,7.87,210.41,210.39,0.03655071]
[1756949874261,1.56175766,210.42,210.39,0.03655071]
[1756949874462,7.87,210.41,210.39,0.03655071]
[1756949875267,125.55,210.43,210.39,0.03655071]
[1756949876170,117.68,210.43,210.39,0.03655071]
[1756949876468,7.87,210.42,210.39,0.03655071]
[1756949878471,117.68,210.43,210.39,7.96655071]
[1756949878668,117.68,210.43,210.4,7.93]
[1756949878869,125.55,210.43,210.39,0.03655071]
[1756949879870,125.55,210.43,210.39,7.96655071]
[1756949881061,117.68,210.43,210.39,0.03655071]
[1756949881272,7.87,210.41,210.39,0.03655071]
[1756949881565,117.68,210.43,210.39,0.03655071]
[1756949881566,9.43175766,210.4,210.39,0.03655071]
[1756949884173,117.68,210.41,210.39,0.03655071]
[1756949884370,7.87,210.43,210.39,0.03655071]
[1756949884776,125.55,210.42,210.39,0.03655071]
[1756949884975,117.68,210.42,210.39,7.96655071]
[1756949885675,7.87,210.41,210.39,0.03655071]
[1756949886071,117.68,210.42,210.39,0.03655071]
[1756949886269,125.55,210.42,210.39,0.03655071]
[1756949889477,7.87,210.5,210.39,0.03655071]
[1756949889678,7.87,210.47,210.4,1.56175766]
[1756949889872,36.94,210.46,210.4,1.56175766]
[1756949890271,7.87,210.45,210.41,0.03144021]
[1756949890975,38.50175766,210.46,210.41,0.03144021]
[1756949891479,7.87,210.45,210.41,0.03144021]
[1756949891869,38.50175766,210.46,210.41,0.03144021]
[1756949892668,7.61,210.45,210.41,0.03144021]
[1756949892870,38.50175766,210.46,210.41,0.03144021]
[1756949893278,7.61,210.45,210.41,0.03144021]
[1756949893478,38.50175766,210.46,210.41,0.03144021]
[1756949893679,1.56175766,210.46,210.41,0.03144021]
[1756949893982,9.17175766,210.42,210.41,0.03144021]
[1756949894176,9.17175766,210.42,210.3,7.37]
[1756949894177,21.53175766,210.42,210.3,7.37]
[1756949894380,21.53175766,210.42,210.23,0.82762557]
[1756949894381,7.61,210.34,210.27,1.56175766]
[1756949895380,0.0328724,210.33,210.27,1.56175766]
[1756949899877,0.0328724,210.33,210.25,3.97890647]
[1756949900082,0.0328724,210.33,210.32,7.37]
[1756949900682,0.0328724,210.33,210.32,7.85]
[1756949900879,10.21175766,210.46,210.33,7.37]
[1756949901071,10.21175766,210.46,210.38,1.56175766]
[1756949901581,7.61,210.43,210.36,8.93175766]
[1756949902086,7.61,210.43,210.37,0.03600172]
[1756949902475,7.61,210.47,210.4,7.37]
[1756949902679,7.61,210.47,210.41,1.56175766]
[1756949902981,7.61,210.47,210.42,0.03547456]
[1756949903183,38.1,210.48,210.42,0.03547456]
[1756949903479,7.61,210.47,210.42,0.03547456]
[1756949903885,38.1,210.48,210.42,0.03547456]
[1756949904285,45.71,210.48,210.42,0.03547456]
[1756949906388,1.56175766,210.47,210.42,0.03547456]
[1756949906590,7.61,210.46,210.42,0.03547456]
[1756949906988,1.56175766,210.47,210.42,0.03547456]
[1756949907190,7.61,210.46,210.42,0.03547456]
[1756949907893,1.56175766,210.47,210.42,0.03547456]
[1756949908192,7.61,210.46,210.42,0.03547456]
[1756949908994,1.56175766,210.47,210.42,0.03547456]
[1756949910096,7.61,210.46,210.42,0.03547456]
[1756949910297,1.56175766,210.47,210.42,0.03547456]
[1756949910504,7.61,210.46,210.42,0.03547456]
[1756949910703,1.56175766,210.45,210.42,0.03547456]
[1756949911302,7.61,210.44,210.42,0.03547456]
[1756949911699,1.56175766,210.45,210.42,0.03547456]
[1756949911899,7.61,210.44,210.42,0.03547456]
[1756949912098,1.56175766,210.45,210.42,0.03547456]
[1756949912295,7.61,210.44,210.42,0.03547456]
[1756949912901,1.56175766,210.43,210.42,0.03547456]
[1756949913101,9.17175766,210.43,210.42,0.03547456]
[1756949914605,96.97175766,210.48,210.42,0.03547456]
[1756949916205,9.17175766,210.48,210.42,0.03547456]
[1756949916403,83.57175766,210.48,210.42,0.03547456]
[1756949917596,126.81175766,210.48,210.42,0.03547456]
[1756949918505,1.56175766,210.46,210.42,0.03547456]
[1756949919006,1.56175766,210.44,210.42,0.03547456]
[1756949919303,7.61,210.43,210.42,0.03547456]
[1756949919805,7.61,210.43,210.32,1.56175766]
[1756949919999,9.17175766,210.39,210.3,8.93175766]
[1756949921003,7.61,210.36,210.3,7.37]
[1756949921203,1.56175766,210.35,210.31,7.37]
[1756949921412,7.61,210.35,210.31,7.37]
[1756949921700,7.61,210.36,210.27,7.37]
[1756949922305,0.03081987,210.34,210.27,7.37]
[1756949923414,0.03081987,210.34,210.28,7.42]
[1756949923712,0.03081987,210.34,210.28,11.41612934]
[1756949923911,0.03081987,210.34,210.29,7.42]
[1756949924612,0.03081987,210.34,210.28,3.99612934]
[1756949924613,0.03081987,210.34,210.28,7.42]
[1756949929917,0.03081987,210.34,210.24,11.41612934]
[1756949930116,0.03081987,210.34,210.24,7.42]
[1756949931020,0.03081987,210.34,210.26,7.42]
[1756949934918,7.68,210.33,210.26,7.42]
[1756949935614,0.03081987,210.34,210.26,7.42]
[1756949936917,7.68,210.33,210.26,7.42]
[1756949941017,0.03081987,210.34,210.26,7.42]
[1756949949227,0.03081987,210.34,210.27,11.41612934]
[1756949949427,0.03081987,210.34,210.3,2.44045298]
[1756949949824,0.03081987,210.34,210.31,7.42]
[1756949950224,0.03081987,210.34,210.3,2.44045298]
[1756949950428,0.03081987,210.34,210.31,7.42]
[1756949950629,0.03081987,210.34,210.33,9.86045298]
[1756949952623,7.68,210.44,210.34,7.5]
[1756949952930,7.68,210.44,210.33,2.92045298]
[1756949952931,7.68,210.44,210.37,7.5]
[1756949953329,13.76,210.45,210.37,7.5]
[1756949953929,13.76,210.45,210.39,0.03365747]
[1756949954331,21.51,210.45,210.39,0.03365747]
[1756949956225,7.75,210.43,210.39,0.03365747]
[1756949956426,2.44045298,210.44,210.39,0.03365747]
[1756949956631,7.75,210.43,210.39,0.03365747]
[1756949957334,2.44045298,210.44,210.39,0.03365747]
[1756949957734,7.75,210.43,210.39,0.03365747]
[1756949957929,2.44045298,210.44,210.39,0.03365747]
[1756949958324,7.75,210.43,210.39,0.03365747]
[1756949958934,2.44045298,210.44,210.39,0.03365747]
[1756949959531,21.51,210.45,210.39,0.03365747]
[1756949959732,7.75,210.45,210.39,0.03365747]
[1756949971534,7.75,210.45,210.39,7.53365747]
[1756949975536,7.75,210.5,210.4,7.5]
[1756949976135,7.75,210.5,210.43,0.03369647]
[1756949976339,7.75,210.5,210.43,7.53369647]
[1756949980445,33.84,210.51,210.43,7.53369647]
[1756949980746,7.75,210.54,210.43,7.53369647]
[1756949980939,7.75,210.54,210.46,7.5]
[1756949981545,7.75,210.54,210.48,0.03281847]
[1756949981546,9.30993742,210.54,210.48,0.03281847]
[1756949982045,7.75,210.54,210.48,1.59275589]
[1756949982440,7.75,210.54,210.48,0.03281847]
[1756949982641,7.75,210.54,210.48,1.59275589]
[1756949984445,1.55993742,210.51,210.48,0.03281847]
[1756949984650,7.92,210.5,210.48,0.03281847]
[1756949985944,1.55993742,210.53,210.48,0.03281847]
[1756949986644,7.92,210.52,210.48,0.03281847]
[1756949987647,7.92,210.52,210.48,7.57281847]
[1756949988948,320.97993742,210.55,210.49,7.54]
[1756949989752,320.97993742,210.55,210.48,0.03281847]
[1756949989954,7.92,210.54,210.48,0.03281847]
[1756949993051,7.92,210.54,210.48,1.59275589]
[1756949993556,7.92,210.54,210.51,7.54]
[1756949994056,117.54,210.56,210.51,7.54]
[1756949994057,7.92,210.56,210.51,7.54]
[1756949994357,7.92,210.56,210.52,9.09993742]
[1756949996256,7.92,210.56,210.52,1.55993742]
[1756949996456,7.92,210.56,210.5,1.55993742]
[1756949999063,7.92,210.56,210.48,7.57281847]
[1756949999064,7.92,210.56,210.48,9.13275589]
[1756949999261,7.92,210.54,210.48,9.13275589]
[1756950000656,56.6,210.57,210.51,1.55993742]
[1756950001662,7.92,210.59,210.53,9.09993742]
[1756950002267,7.92,210.6,210.54,0.03109519]
[1756950002468,7.92,210.56,210.54,0.03109519]
[1756950002671,1.55993742,210.57,210.54,0.03109519]
[1756950003263,7.92,210.56,210.54,0.03109519]
[1756950003466,1.55993742,210.57,210.54,0.03109519]
[1756950003668,7.92,210.56,210.54,0.03109519]
[1756950004170,9.47993742,210.55,210.54,0.03109519]
[1756950006773,7.92,210.58,210.54,0.03109519]
[1756950008169,1.55993742,210.55,210.54,0.03109519]
[1756950008375,9.47993742,210.55,210.54,0.03109519]
[1756950011471,9.95993742,210.55,210.43,7.54]
[1756950011679,9.47993742,210.5,210.43,7.54]
[1756950012780,0.03062363,210.49,210.43,7.54]
[1756950014776,1.55993742,210.48,210.42,1.55993742]
[1756950014977,1.55993742,210.48,210.4,8.79993742]
[1756950016580,1.55993742,210.48,210.42,1.55993742]
[1756950017179,0.03062363,210.49,210.42,1.55993742]
[1756950017675,0.03062363,210.49,210.44,1.55993742]
[1756950017881,0.03062363,210.49,210.47,7.24]
[1756950018181,7.89,210.53,210.47,7.24]
[1756950018481,0.03629754,210.5,210.47,7.24]
[1756950018675,0.03629754,210.5,210.46,1.55993742]
[1756950018977,0.03629754,210.5,210.47,7.24]
[1756950019379,0.03629754,210.5,210.49,7.24]
[1756950019572,7.89,210.57,210.49,7.24]
[1756950019773,0.03266617,210.52,210.51,1.55993742]
[1756950019972,0.03266617,210.52,210.51,8.79993742]
[1756950021978,0.03266617,210.52,210.46,7.24]
[1756950022181,0.03266617,210.52,210.46,8.79993742]
[1756950024984,1.59260359,210.52,210.46,7.24]
[1756950026987,1.59260359,210.52,210.46,8.79993742]
[1756950027188,1.59260359,210.52,210.46,7.24]
[1756950028490,1.55993742,210.5,210.42,8.79993742]
[1756950028891,1.55993742,210.48,210.42,8.79993742]
[1756950029591,0.03093377,210.47,210.43,7.24]
[1756950029788,0.03093377,210.47,210.42,1.55993742]
[1756950030188,0.03093377,210.47,210.43,7.24]
[1756950030487,7.92093377,210.47,210.43,7.24]
[1756950031085,7.89,210.46,210.4,1.55993742]
[1756950036095,0.03093377,210.47,210.42,1.55993742]
[1756950036296,0.03093377,210.47,210.46,8.79993742]
[1756950041602,0.03093377,210.47,210.46,7.24]
[1756950047107,7.61,210.46,210.42,7.89]
[1756950047500,0.03093377,210.47,210.42,7.89]
[1756950047697,0.03093377,210.47,210.43,7.89]
[1756950047905,0.03093377,210.47,210.46,7.89]
[1756950051708,0.03093377,210.47,210.43,7.89]
[1756950051903,7.64093377,210.47,210.43,7.89]
[1756950052510,7.61,210.46,210.43,7.89]
[1756950053011,0.03093377,210.47,210.41,6.41362544]
[1756950053205,0.03093377,210.47,210.42,7.89]
[1756950053508,0.03093377,210.47,210.41,6.41362544]
[1756950053707,0.03093377,210.47,210.42,7.89]
[1756950054310,0.03093377,210.47,210.43,7.89]
[1756950054706,0.03093377,210.47,210.45,7.89]
[1756950055207,0.03093377,210.47,210.44,6.41362544]
[1756950055605,0.03093377,210.47,210.45,7.89]
[1756950055807,0.03093377,210.47,210.44,6.41362544]
[1756950056002,0.03093377,210.47,210.45,7.89]
[1756950056411,0.03093377,210.47,210.44,6.41362544]
[1756950056607,0.03093377,210.47,210.45,7.89]
[1756950056809,0.03093377,210.47,210.44,6.41362544]
[1756950057009,0.03093377,210.47,210.45,7.89]
[1756950057209,0.03093377,210.47,210.44,6.41362544]
[1756950057410,0.03093377,210.47,210.45,7.89]
[1756950057608,0.03093377,210.47,210.44,6.41362544]
[1756950057809,0.03093377,210.47,210.44,2.43698074]
[1756950058010,0.03093377,210.47,210.44,6.41362544]
[1756950058212,0.03093377,210.47,210.45,7.89]
[1756950058408,0.03093377,210.47,210.45,11.8666447]
[1756950058605,0.03093377,210.47,210.46,7.89]
[1756950059812,5.22849206,210.62,210.52,10.32698074]
[1756950060010,7.61,210.63,210.56,7.89]
[1756950061009,7.61,210.63,210.57,0.03440813]
[1756950061513,7.61,210.66,210.57,7.92440813]
[1756950062305,7.61,210.66,210.57,10.36138887]
[1756950062906,7.61,210.66,210.57,7.92440813]
[1756950064312,7.61,210.66,210.59,7.89]
[1756950064505,39.01,210.71,210.62,7.89]
[1756950065115,39.01,210.71,210.64,0.03011468]
[1756950066618,39.01,210.71,210.64,2.46709542]
[1756950069319,7.61,210.71,210.65,7.89]
[1756950069620,7.61,210.71,210.67,10.32698074]
[1756950070423,7.61,210.76,210.67,2.43698074]
[1756950070616,7.61,210.76,210.64,2.46709542]
[1756950070817,7.61,210.76,210.64,2.43698074]
[1756950071019,7.61,210.76,210.68,0.03185766]
[1756950071217,10.04698074,210.76,210.68,0.03185766]
[1756950072121,7.61,210.76,210.68,0.03185766]
[1756950075135,10.04698074,210.76,210.68,0.03185766]
[1756950078235,7.61,210.76,210.68,0.03185766]
[1756950079138,7.61,210.76,210.69,2.43698074]
[1756950079542,7.61,210.76,210.69,10.32698074]
[1756950081937,117.38,210.78,210.7,7.89]
[1756950082542,117.38,210.78,210.72,2.43698074]
[1756950082731,117.38,210.78,210.7,7.89]
[1756950082936,7.37,210.77,210.7,7.89]
[1756950083136,117.38,210.78,210.72,0.03521943]
[1756950083935,7.37,210.77,210.72,0.03521943]
[1756950084140,117.38,210.78,210.72,0.03521943]
[1756950084342,124.75,210.78,210.72,0.03521943]
[1756950092250,2.43698074,210.76,210.72,0.03521943]
[1756950092442,7.37,210.75,210.72,0.03521943]
[1756950093146,2.43698074,210.76,210.72,0.03521943]
[1756950093354,7.37,210.75,210.72,0.03521943]
[1756950093948,117.38,210.78,210.72,0.03521943]
[1756950094147,7.37,210.77,210.72,0.03521943]
[1756950095652,7.4034572,210.77,210.72,0.03521943]
[1756950096451,2.43698074,210.84,210.72,0.03521943]
[1756950096452,7.37,210.84,210.77,7.89]
[1756950096649,7.37,210.84,210.79,2.43698074]
[1756950096850,2.43698074,210.92,210.8,7.89]
[1756950097050,7.37,210.91,210.79,2.43698074]
[1756950097254,7.37,210.91,210.76,10.32698074]
[1756950097851,7.37,210.91,210.81,0.03433168]
[1756950099752,7.37,210.88,210.81,0.03433168]
[1756950099952,7.37,210.86,210.81,0.03433168]
[1756950102355,7.32,210.86,210.81,0.03433168]
[1756950102557,118.12,210.87,210.81,0.03433168]
[1756950102755,7.32,210.86,210.81,0.03433168]
[1756950102950,125.38,210.85,210.81,0.03433168]
[1756950103152,7.32,210.84,210.81,0.03433168]
[1756950103447,7.32,210.84,210.81,1.58927578]
[1756950104055,118.06,210.85,210.81,1.58927578]
[1756950104357,7.32,210.84,210.81,1.58927578]
[1756950104751,7.32,210.89,210.81,9.20927578]
[1756950104961,125.42,210.89,210.83,1.5549441]
[1756950105249,118.1,210.89,210.81,7.65433168]
[1756950105457,7.32,210.88,210.84,1.5549441]
[1756950105650,118.1,210.89,210.84,1.5549441]
[1756950105853,7.32,210.88,210.84,1.5549441]
[1756950106256,118.1,210.89,210.84,1.5549441]
[1756950106453,7.32,210.88,210.84,1.5549441]
[1756950106756,118.1,210.89,210.84,1.5549441]
[1756950107158,7.32,210.88,210.81,7.65433168]
[1756950107356,8.8749441,210.88,210.81,1.58927578]
[1756950107556,8.8749441,210.88,210.81,0.03433168]
[1756950109758,5.22849206,210.95,210.81,0.03433168]
[1756950109759,7.32,210.94,210.85,1.5549441]
[1756950110161,7.32,210.92,210.85,1.5549441]
[1756950110356,7.32,210.92,210.87,0.03100646]
[1756950110660,1.5549441,210.93,210.87,0.03100646]
[1756950111059,7.32,210.92,210.87,0.03100646]
[1756950111552,1.5549441,210.93,210.87,0.03100646]
[1756950111754,7.32,210.92,210.87,0.03100646]
[1756950112158,1.5549441,210.93,210.87,0.03100646]
[1756950112355,7.32,210.92,210.87,0.03100646]
[1756950112559,1.5549441,210.93,210.87,0.03100646]
[1756950113261,7.32,210.94,210.87,1.58595056]
[1756950113656,118.16,210.96,210.87,1.58595056]
[1756950113657,1.5549441,210.91,210.87,0.03100646]
[1756950113862,8.8749441,210.88,210.87,0.03100646]
[1756950114162,8.8749441,210.88,210.79,1.5549441]
[1756950114364,8.8749441,210.88,210.81,1.5549441]
[1756950114562,1.5549441,210.88,210.85,0.03109781]
[1756950115059,8.8749441,210.86,210.85,0.03109781]
[1756950116057,8.8749441,210.86,210.76,1.5549441]
[1756950116258,7.32,210.83,210.76,1.5549441]
[1756950117362,7.32,210.83,210.77,0.0364038]
[1756950118362,7.32,210.81,210.77,0.0364038]
[1756950119465,0.03046013,210.82,210.77,0.0364038]
[1756950119665,7.32,210.81,210.77,0.0364038]
[1756950120160,1.58540423,210.82,210.77,0.0364038]
[1756950120359,7.32,210.81,210.77,0.0364038]
[1756950120567,1.58540423,210.82,210.77,0.0364038]
[1756950121256,7.32,210.81,210.77,0.0364038]
[1756950121461,1.58540423,210.82,210.77,0.0364038]
[1756950121766,1.5549441,210.8,210.77,0.0364038]
[1756950122165,8.8749441,210.78,210.77,0.0364038]
[1756950123067,7.32,210.78,210.77,0.0364038]
[1756950123263,0.03046013,210.82,210.78,7.62]
[1756950123568,18.29972223,211.06,210.82,7.62]
[1756950123569,8.8749441,210.93,210.82,7.62]
[1756950123770,8.8749441,210.93,210.84,1.5549441]
[1756950123967,7.32,210.9,210.82,9.1749441]
[1756950124369,7.32,210.9,210.84,1.5549441]
[1756950124565,7.32,210.9,210.84,1.58802548]
[1756950124869,7.32,210.9,210.84,0.03308138]
[1756950125167,7.32,210.9,210.84,1.58802548]
[1756950125968,7.32,210.9,210.84,0.03308138]
[1756950129368,7.32,210.9,210.85,1.5549441]
[1756950129561,59.9749441,210.92,210.85,1.5549441]
[1756950129562,7.32,210.91,210.85,1.5549441]
[1756950130075,7.32,210.96,210.89,1.5549441]
[1756950130770,7.32,210.96,210.9,0.03231098]
[1756950132963,7.5,210.97,210.93,1.5549441]
[1756950133167,0.03425828,210.95,210.94,1.5549441]
[1756950133368,7.5,210.94,210.93,1.5549441]
[1756950133974,0.03425828,210.95,210.93,1.5549441]
[1756950134174,0.03425828,210.95,210.9,7.22231098]
[1756950134371,7.53425828,210.95,210.93,1.5549441]
[1756950137171,0.03425828,210.95,210.93,8.7449441]
[1756950137882,0.03425828,210.95,210.94,7.19]
[1756950141390,0.03425828,210.95,210.94,8.7449441]
[1756950142384,0.03425828,210.95,210.92,1.5549441]
[1756950142385,7.5,210.94,210.92,1.5549441]
[1756950143790,0.03425828,210.95,210.92,1.5549441]
[1756950144191,0.03425828,210.95,210.9,0.03231098]
[1756950144395,0.03425828,210.95,210.92,1.5549441]
[1756950144694,0.03425828,210.95,210.92,8.7449441]
[1756950146294,0.03425828,210.95,210.93,7.19]
[1756950149696,0.03425828,210.95,210.93,8.7449441]
[1756950153299,0.03425828,210.95,210.94,7.19]
[1756950154704,7.5,210.94,210.9,7.22231098]
[1756950155002,7.5,210.94,210.9,8.77725508]
[1756950155205,7.5,210.94,210.9,7.22231098]
[1756950156897,0.03425828,210.95,210.9,7.22231098]
[1756950156898,0.03425828,210.95,210.91,7.19]
[1756950157099,7.53425828,210.95,210.9,7.22231098]
[1756950157405,7.5,210.94,210.9,7.22231098]
[1756950159910,0.03425828,210.95,210.9,0.03231098]
[1756950160600,7.5,210.94,210.9,0.03231098]
[1756950160800,7.5,210.94,210.9,7.22231098]
[1756950161697,0.03425828,210.95,210.91,7.19]
[1756950161896,0.03425828,210.95,210.9,1.58725508]
[1756950162101,0.03425828,210.95,210.91,7.42]
[1756950162306,0.03425828,210.95,210.9,1.58725508]
[1756950162604,0.03425828,210.95,210.91,7.42]
[1756950163107,7.22425828,210.95,210.91,7.42]
[1756950163697,7.22425828,210.95,210.9,0.03231098]
[1756950164098,7.22425828,210.95,210.91,7.42]
[1756950165306,7.19,210.94,210.91,7.42]
[1756950165504,7.19,210.94,210.9,0.03231098]
[1756950165910,7.19,210.94,210.9,7.45231098]
[1756950167316,0.03425828,210.95,210.9,0.03231098]
[1756950167609,0.03425828,210.95,210.91,7.42]
[1756950168009,7.22425828,210.95,210.91,7.42]
[1756950169610,7.19,210.94,210.91,7.42]
[1756950170916,7.19,210.94,210.9,0.03231098]
[1756950171106,0.03425828,210.95,210.9,0.03231098]
[1756950171510,7.19,210.94,210.9,0.03231098]
[1756950172110,0.03425828,210.95,210.9,0.03231098]
[1756950172309,7.19,210.94,210.9,0.03231098]
[1756950173015,0.03425828,210.95,210.9,0.03231098]
[1756950173213,7.19,210.94,210.9,0.03231098]
[1756950173715,0.03425828,210.95,210.9,0.03231098]
[1756950174610,7.19,210.94,210.9,0.03231098]
[1756950175118,0.03425828,210.95,210.9,0.03231098]
[1756950175310,7.19,210.94,210.9,0.03231098]
[1756950175616,0.03425828,210.95,210.9,0.03231098]
[1756950175915,7.19,210.94,210.9,0.03231098]
[1756950176110,0.03425828,210.95,210.9,0.03231098]
[1756950176910,0.03425828,210.95,210.91,7.42]
[1756950177110,0.03425828,210.95,210.9,0.03231098]
[1756950177312,0.03425828,210.95,210.92,7.42]
[1756950177512,7.22425828,210.95,210.92,7.42]
[1756950177717,7.22425828,210.95,210.9,7.45231098]
[1756950177916,7.19,210.94,210.9,7.45231098]
[1756950178217,7.19,210.94,210.91,7.42]
[1756950178714,0.03425828,210.95,210.91,9.84711463]
[1756950178920,0.03425828,210.95,210.92,7.42]
[1756950179113,0.03425828,210.95,210.91,3.95137306]
[1756950179314,0.03425828,210.95,210.92,7.42]
[1756950179620,7.22425828,210.95,210.92,7.42]
[1756950182219,0.03425828,210.95,210.92,7.42]
[1756950182419,0.03425828,210.95,210.9,2.45942561]
[1756950182616,0.03425828,210.95,210.91,7.42]
[1756950183027,0.03425828,210.95,210.9,2.45942561]
[1756950183320,0.03425828,210.95,210.91,7.42]
[1756950183723,0.03425828,210.95,210.9,2.45942561]
[1756950184720,0.03425828,210.95,210.91,7.42]
[1756950185227,7.22425828,210.95,210.91,7.42]
[1756950185526,7.19,210.94,210.9,0.03231098]
[1756950185734,7.19,210.93,210.9,7.45231098]
[1756950186030,0.03425828,210.95,210.91,7.42]
[1756950186325,0.03425828,210.95,210.9,0.03231098]
[1756950186526,0.03425828,210.95,210.91,7.42]
[1756950186832,0.03425828,210.95,210.9,0.03231098]
[1756950187233,0.03425828,210.95,210.91,7.42]
[1756950187927,0.03425828,210.95,210.9,0.03231098]
[1756950188327,0.03425828,210.95,210.91,7.42]
[1756950188528,7.19,210.94,210.9,0.03231098]